[Event "MČR juniorů a juniorek v rapid šachu 2024"]
[Site "Hotel Fit Fun, Harrachov, Czech Republic"]
[Date "2024.09.22"]
[Round "7.21"]
[White "Dobsa Emma"]
[Black "Stara Zuzana"]
[Result "1-0"]
[TimeControl "20+5"]
[WhiteFideId "23709391"]
[BlackFideId "23733543"]
[WhiteElo "1830"]
[BlackElo "1796"]

1. e4 {[%clk 00:20:08]} {[%emt 00:00:01]} c6 {[%clk 00:20:09]} {[%emt
00:00:01]} 2. d4 {[%clk 00:20:11]} {[%emt 00:00:02]} d5 {[%clk 00:20:13]}
{[%emt 00:00:01]} 3. Nc3 {[%clk 00:20:15]} {[%emt 00:00:01]} dxe4 {[%clk
00:20:16]} {[%emt 00:00:02]} 4. Nxe4 {[%clk 00:20:19]} {[%emt 00:00:01]} Nf6
{[%clk 00:20:20]} {[%emt 00:00:02]} 5. Nxf6+ {[%clk 00:20:22]} {[%emt
00:00:01]} exf6 {[%clk 00:20:23]} {[%emt 00:00:02]} 6. c3 {[%clk 00:20:26]} g6
{[%clk 00:20:27]} {[%emt 00:00:01]} 7. Bd3 {[%clk 00:20:26]} {[%emt 00:00:05]}
Bg7 {[%clk 00:20:27]} {[%emt 00:00:05]} 8. Nf3 {[%clk 00:19:49]} {[%emt
00:00:42]} O-O {[%clk 00:20:24]} {[%emt 00:00:08]} 9. O-O {[%clk 00:19:51]}
{[%emt 00:00:03]} Re8 {[%clk 00:19:46]} {[%emt 00:00:43]} 10. Bf4 {[%clk
00:19:41]} {[%emt 00:00:15]} Nd7 {[%clk 00:19:40]} {[%emt 00:00:11]} 11. Qd2
{[%clk 00:19:36]} {[%emt 00:00:09]} Nb6 {[%clk 00:19:17]} {[%emt 00:00:29]} 12.
Rfe1 {[%clk 00:18:57]} {[%emt 00:00:43]} Be6 {[%clk 00:19:04]} {[%emt
00:00:19]} 13. Re2 {[%clk 00:17:49]} {[%emt 00:01:14]} Nd5 {[%clk 00:18:44]}
{[%emt 00:00:24]} 14. Bh6 {[%clk 00:17:22]} {[%emt 00:00:32]} Qd7 {[%clk
00:18:31]} {[%emt 00:00:18]} 15. Bxg7 {[%clk 00:16:30]} {[%emt 00:00:58]} Kxg7
{[%clk 00:18:35]} 16. h3 {[%clk 00:15:15]} {[%emt 00:01:19]} a5 {[%clk
00:16:43]} {[%emt 00:01:58]} 17. Rae1 {[%clk 00:13:47]} {[%emt 00:01:32]} a4
{[%clk 00:16:26]} {[%emt 00:00:22]} 18. Be4 {[%clk 00:12:40]} {[%emt 00:01:12]}
Nb6 {[%clk 00:12:18]} {[%emt 00:04:13]} 19. Bb1 {[%clk 00:12:18]} {[%emt
00:00:28]} Bd5 {[%clk 00:09:07]} {[%emt 00:03:16]} 20. Nh2 {[%clk 00:11:16]}
{[%emt 00:01:06]} Nc4 {[%clk 00:07:54]} {[%emt 00:01:18]} 21. Qf4 {[%clk
00:10:35]} {[%emt 00:00:45]} Rxe2 {[%clk 00:06:02]} {[%emt 00:01:58]} 22. Rxe2
{[%clk 00:10:39]} {[%emt 00:00:01]} Re8 {[%clk 00:05:23]} {[%emt 00:00:44]} 23.
Ng4 {[%clk 00:07:34]} {[%emt 00:03:10]} Re6 {[%clk 00:03:56]} {[%emt 00:01:31]}
24. Bf5 {[%clk 00:03:37]} {[%emt 00:04:03]} gxf5 {[%clk 00:03:11]} {[%emt
00:00:50]} 25. Rxe6 {[%clk 00:02:26]} {[%emt 00:01:17]} Qxe6 {[%clk 00:01:17]}
{[%emt 00:01:59]} 26. Qh6+ {[%clk 00:02:29]} {[%emt 00:00:02]} Kg8 {[%clk
00:01:21]} 27. Nxf6+ {[%clk 00:02:33]} {[%emt 00:00:02]} Qxf6 {[%clk 00:01:24]}
{[%emt 00:00:01]} 28. Qxf6 {[%clk 00:02:36]} {[%emt 00:00:02]} Be6 {[%clk
00:01:27]} {[%emt 00:00:03]} 29. Qd8+ {[%clk 00:02:15]} {[%emt 00:00:26]} Kg7
{[%clk 00:01:31]} 30. Qg5+ {[%clk 00:02:18]} {[%emt 00:00:02]} Kf8 {[%clk
00:01:29]} {[%emt 00:00:05]} 31. Qc1 {[%clk 00:02:10]} {[%emt 00:00:14]} b5
{[%clk 00:01:27]} {[%emt 00:00:08]} 32. h4 {[%clk 00:01:49]} {[%emt 00:00:27]}
Nd6 {[%clk 00:01:21]} {[%emt 00:00:11]} 33. Qb1 {[%clk 00:01:37]} {[%emt
00:00:16]} Ne4 {[%clk 00:01:13]} {[%emt 00:00:13]} 34. h5 {[%clk 00:01:18]}
{[%emt 00:00:24]} h6 {[%clk 00:01:06]} {[%emt 00:00:12]} 35. f3 {[%clk
00:01:10]} {[%emt 00:00:13]} Ng3 {[%clk 00:00:56]} {[%emt 00:00:12]} 36. Kf2
{[%clk 00:01:02]} {[%emt 00:00:15]} Nxh5 {[%clk 00:00:35]} {[%emt 00:00:27]} 37.
Qh1 {[%clk 00:01:06]} {[%emt 00:00:01]} Nf6 {[%clk 00:00:38]} {[%emt 00:00:02]}
38. Qxh6+ {[%clk 00:01:09]} {[%emt 00:00:02]} Ke7 {[%clk 00:00:43]} 39. Qf4
{[%clk 00:01:08]} {[%emt 00:00:07]} Nd5 {[%clk 00:00:41]} {[%emt 00:00:06]} 40.
Qb8 {[%clk 00:01:02]} {[%emt 00:00:10]} Kf6 {[%clk 00:00:16]} {[%emt 00:00:31]}
41. Qe5+ {[%clk 00:01:02]} {[%emt 00:00:05]} Ke7 {[%clk 00:00:18]} {[%emt
00:00:03]} 42. Ke2 {[%clk 00:01:03]} {[%emt 00:00:04]} Kd7 {[%clk 00:00:15]}
{[%emt 00:00:08]} 43. Kd2 {[%clk 00:01:03]} {[%emt 00:00:05]} Nc7 {[%clk
00:00:12]} {[%emt 00:00:08]} 44. Kc2 {[%clk 00:01:01]} {[%emt 00:00:07]} Nd5
{[%clk 00:00:12]} {[%emt 00:00:06]} 45. b3 {[%clk 00:00:52]} {[%emt 00:00:13]}
axb3+ {[%clk 00:00:12]} {[%emt 00:00:05]} 46. axb3 {[%clk 00:00:56]} {[%emt
00:00:01]} f4 {[%clk 00:00:14]} {[%emt 00:00:03]} 47. Kb2 {[%clk 00:00:53]}
{[%emt 00:00:09]} Ke7 {[%clk 00:00:11]} {[%emt 00:00:07]} 48. Qg5+ {[%emt
00:00:20]} Kd7 {[%clk 00:00:13]} {[%emt 00:00:02]} 49. Qe5 {[%clk 00:00:36]}
{[%emt 00:00:08]} Ke7 {[%clk 00:00:17]} {[%emt 00:00:01]} 50. c4 {[%clk
00:00:38]} {[%emt 00:00:04]} bxc4 {[%clk 00:00:17]} {[%emt 00:00:05]} 51. bxc4
{[%clk 00:00:41]} Ne3 {[%clk 00:00:20]} {[%emt 00:00:01]} 52. Qg5+ {[%clk
00:00:34]} {[%emt 00:00:12]} Kd7 {[%clk 00:00:24]} {[%emt 00:00:02]} 53. c5
{[%clk 00:00:38]} {[%emt 00:00:02]} Nd5 {[%clk 00:00:24]} {[%emt 00:00:05]} 54.
Qe5 {[%clk 00:00:37]} {[%emt 00:00:05]} Ke7 {[%clk 00:00:20]} {[%emt 00:00:09]}
55. Qd6+ {[%clk 00:00:41]} {[%emt 00:00:01]} Kf6 {[%clk 00:00:24]} 56. Qxc6
{[%emt 00:00:02]} Ne3 {[%clk 00:00:27]} {[%emt 00:00:01]} 57. Qe4 {[%clk
00:00:39]} {[%emt 00:00:10]} Kg5 {[%clk 00:00:17]} {[%emt 00:00:17]} 58. d5
{[%clk 00:00:38]} {[%emt 00:00:06]} Bxd5 {[%clk 00:00:18]} {[%emt 00:00:03]} 59.
Qe5+ {[%clk 00:00:37]} {[%emt 00:00:06]} f5 {[%clk 00:00:22]} 60. Qg7+ {[%clk
00:00:40]} {[%emt 00:00:01]} Kh4 {[%clk 00:00:22]} {[%emt 00:00:06]} 61. Qg6
{[%clk 00:00:35]} {[%emt 00:00:05]} Nxg2 {[%clk 00:00:22]} {[%emt 00:00:10]} 62.
Qxg2 {[%clk 00:00:33]} {[%emt 00:00:08]} 1-0



[ePGN "0.1;DGT LiveChess/2.2.6"]

[Event "MČR juniorů a juniorek v rapid šachu 2024"]
[Site "Hotel Fit Fun, Harrachov, Czech Republic"]
[Date "2024.09.22"]
[Round "7.22"]
[White "Mrazek Adam"]
[Black "Housa Jan"]
[Result "1/2-1/2"]
[TimeControl "20+5"]
[WhiteFideId "23725010"]
[BlackFideId "23736356"]
[WhiteElo "1830"]
[BlackElo "1788"]

1. c4 {[%clk 00:19:59]} {[%emt 00:00:11]} g6 {[%clk 00:20:08]} {[%emt
00:00:03]} 2. g3 {[%clk 00:20:03]} Bg7 {[%clk 00:20:11]} {[%emt 00:00:02]} 3.
Bg2 {[%clk 00:20:03]} {[%emt 00:00:04]} c6 {[%clk 00:20:14]} {[%emt 00:00:02]}
4. Nc3 {[%clk 00:20:02]} {[%emt 00:00:06]} Nf6 {[%clk 00:20:16]} {[%emt
00:00:03]} 5. e4 {[%clk 00:19:45]} {[%emt 00:00:24]} e5 {[%clk 00:19:55]}
{[%emt 00:00:26]} 6. Nge2 {[%clk 00:18:53]} {[%emt 00:00:56]} d6 {[%clk
00:19:23]} {[%emt 00:00:37]} 7. O-O {[%clk 00:18:55]} {[%emt 00:00:03]} O-O
{[%clk 00:19:21]} {[%emt 00:00:07]} 8. d4 {[%clk 00:17:45]} {[%emt 00:01:15]}
Nbd7 {[%clk 00:17:44]} {[%emt 00:01:42]} 9. h3 {[%clk 00:14:08]} {[%emt
00:03:41]} Re8 {[%clk 00:15:30]} {[%emt 00:02:19]} 10. Re1 {[%clk 00:14:03]}
{[%emt 00:00:11]} Qc7 {[%clk 00:15:22]} {[%emt 00:00:13]} 11. Be3 {[%clk
00:12:31]} {[%emt 00:01:37]} b6 {[%clk 00:14:12]} {[%emt 00:01:15]} 12. Rc1
{[%clk 00:11:55]} {[%emt 00:00:41]} Bb7 {[%clk 00:13:43]} {[%emt 00:00:34]} 13.
d5 {[%clk 00:07:51]} {[%emt 00:04:08]} Rac8 {[%clk 00:12:12]} {[%emt 00:01:36]}
14. dxc6 {[%clk 00:05:04]} {[%emt 00:02:53]} Bxc6 {[%clk 00:12:13]} {[%emt
00:00:04]} 15. Nb5 {[%clk 00:05:07]} {[%emt 00:00:02]} Bxb5 {[%clk 00:12:07]}
{[%emt 00:00:11]} 16. cxb5 {[%clk 00:05:11]} Qb8 {[%clk 00:11:53]} {[%emt
00:00:20]} 17. Nc3 {[%clk 00:04:31]} {[%emt 00:00:45]} Nc5 {[%clk 00:11:16]}
{[%emt 00:00:40]} 18. b4 {[%clk 00:04:29]} {[%emt 00:00:08]} Ne6 {[%clk
00:11:16]} {[%emt 00:00:05]} 19. Nd5 {[%clk 00:02:43]} {[%emt 00:01:52]} Nxd5
{[%clk 00:10:38]} {[%emt 00:00:42]} 20. Qxd5 {[%clk 00:01:41]} {[%emt
00:01:07]} Nc7 {[%clk 00:08:26]} {[%emt 00:02:17]} 21. Qd3 {[%clk 00:01:24]}
{[%emt 00:00:23]} Ne6 {[%clk 00:07:36]} {[%emt 00:00:54]} 22. a4 {[%clk
00:01:05]} {[%emt 00:00:24]} Nd4 {[%clk 00:06:48]} {[%emt 00:00:53]} 23. Bxd4
{[%clk 00:01:01]} {[%emt 00:00:09]} exd4 {[%clk 00:06:52]} {[%emt 00:00:01]} 24.
Rc6 {[%clk 00:01:01]} {[%emt 00:00:05]} f5 {[%clk 00:06:11]} {[%emt 00:00:45]}
25. Rec1 {[%clk 00:00:53]} {[%emt 00:00:14]} fxe4 {[%clk 00:05:26]} {[%emt
00:00:50]} 26. Bxe4 {[%clk 00:00:53]} {[%emt 00:00:05]} Kh8 {[%clk 00:04:18]}
{[%emt 00:01:12]} 27. Qc4 {[%clk 00:00:53]} {[%emt 00:00:06]} Rcd8 {[%clk
00:03:21]} {[%emt 00:01:02]} 28. Rc7 {[%clk 00:00:48]} {[%emt 00:00:10]} Rxe4
{[%clk 00:03:11]} {[%emt 00:00:15]} 29. Qf7 {[%clk 00:00:41]} {[%emt 00:00:13]}
Rg8 {[%clk 00:03:05]} {[%emt 00:00:10]} 30. Rxa7 {[%clk 00:00:21]} {[%emt
00:00:26]} Qe8 {[%clk 00:02:33]} {[%emt 00:00:37]} 31. a5 {[%clk 00:00:25]}
Qxf7 {[%clk 00:01:42]} {[%emt 00:00:55]} 32. Rxf7 {[%clk 00:00:29]} {[%emt
00:00:01]} d3 {[%clk 00:01:44]} {[%emt 00:00:03]} 33. Rd1 {[%clk 00:00:24]}
{[%emt 00:00:10]} Rxb4 {[%clk 00:01:11]} {[%emt 00:00:39]} 34. axb6 {[%clk
00:00:14]} {[%emt 00:00:14]} Rxb5 {[%clk 00:01:14]} {[%emt 00:00:02]} 35. b7
{[%clk 00:00:19]} Rb8 {[%clk 00:01:07]} {[%emt 00:00:11]} 36. Rxd3 {[%clk
00:00:20]} {[%emt 00:00:04]} d5 {[%clk 00:00:45]} {[%emt 00:00:27]} 37. Ra3
{[%clk 00:00:11]} {[%emt 00:00:14]} Be5 {[%clk 00:00:14]} {[%emt 00:00:35]} 38.
f4 {[%clk 00:00:13]} {[%emt 00:00:04]} Bd6 {[%clk 00:00:16]} {[%emt 00:00:03]}
39. Ra6 {[%clk 00:00:08]} {[%emt 00:00:11]} Bc5+ {[%clk 00:00:17]} {[%emt
00:00:04]} 40. Kg2 {[%clk 00:00:12]} R5xb7 {[%clk 00:00:21]} {[%emt 00:00:02]}
41. Rxb7 {[%clk 00:00:06]} {[%emt 00:00:10]} Rxb7 {[%clk 00:00:24]} {[%emt
00:00:02]} 42. Ra5 {[%clk 00:00:10]} {[%emt 00:00:01]} Rc7 {[%clk 00:00:26]}
{[%emt 00:00:03]} 43. Kf3 {[%clk 00:00:14]} Kg7 {[%clk 00:00:30]} {[%emt
00:00:02]} 44. g4 {[%clk 00:00:12]} {[%emt 00:00:07]} Kf6 {[%clk 00:00:31]}
{[%emt 00:00:04]} 45. Ra6+ {[%clk 00:00:16]} Kg7 {[%clk 00:00:35]} 46. h4
{[%clk 00:00:20]} {[%emt 00:00:02]} Be7 {[%clk 00:00:31]} {[%emt 00:00:08]} 47.
Ra5 {[%clk 00:00:08]} {[%emt 00:00:17]} Rc3+ {[%clk 00:00:20]} {[%emt
00:00:16]} 48. Ke2 {[%clk 00:00:12]} d4 {[%clk 00:00:21]} {[%emt 00:00:04]} 49.
Rd5 {[%clk 00:00:07]} {[%emt 00:00:09]} Bc5 {[%clk 00:00:14]} {[%emt 00:00:12]}
50. Kd2 {[%clk 00:00:07]} {[%emt 00:00:05]} Bf8 {[%clk 00:00:07]} {[%emt
00:00:13]} 51. Rd7+ {[%clk 00:00:07]} {[%emt 00:00:06]} Kg8 {[%clk 00:00:11]}
{[%emt 00:00:01]} 52. f5 {[%clk 00:00:09]} {[%emt 00:00:03]} gxf5 {[%clk
00:00:14]} {[%emt 00:00:02]} 53. gxf5 {[%clk 00:00:10]} {[%emt 00:00:04]} Rh3
{[%clk 00:00:17]} {[%emt 00:00:01]} 54. Rxd4 {[%clk 00:00:13]} {[%emt
00:00:03]} Be7 {[%clk 00:00:20]} {[%emt 00:00:01]} 55. Ke2 {[%clk 00:00:12]}
{[%emt 00:00:06]} Rxh4 {[%clk 00:00:24]} {[%emt 00:00:01]} 56. Rxh4 {[%clk
00:00:16]} {[%emt 00:00:02]} 1/2-1/2



[ePGN "0.1;DGT LiveChess/2.2.6"]

[Event "MČR juniorů a juniorek v rapid šachu 2024"]
[Site "Hotel Fit Fun, Harrachov, Czech Republic"]
[Date "2024.09.22"]
[Round "7.23"]
[White "Pejrimovsky Tadeas Rubel"]
[Black "Vyslysel Petr"]
[Result "0-1"]
[TimeControl "20+5"]
[WhiteFideId "23709537"]
[BlackFideId "23730277"]
[WhiteElo "1895"]
[BlackElo "1678"]

1. e4 {[%clk 00:20:08]} {[%emt 00:00:02]} e6 {[%clk 00:19:48]} {[%emt
00:00:23]} 2. Nf3 {[%clk 00:20:07]} {[%emt 00:00:06]} d5 {[%clk 00:19:52]}
{[%emt 00:00:01]} 3. e5 {[%clk 00:20:10]} {[%emt 00:00:02]} c5 {[%clk
00:19:55]} {[%emt 00:00:01]} 4. b4 {[%clk 00:20:13]} {[%emt 00:00:02]} b6
{[%clk 00:19:58]} {[%emt 00:00:02]} 5. b5 {[%clk 00:19:31]} {[%emt 00:00:48]}
a6 {[%clk 00:19:47]} {[%emt 00:00:16]} 6. a4 {[%clk 00:19:18]} {[%emt
00:00:17]} Bd7 {[%clk 00:19:41]} {[%emt 00:00:12]} 7. Na3 {[%clk 00:18:50]}
{[%emt 00:00:32]} c4 {[%clk 00:18:58]} {[%emt 00:00:49]} 8. c3 {[%clk
00:18:31]} {[%emt 00:00:24]} axb5 {[%clk 00:18:43]} {[%emt 00:00:20]} 9. axb5
{[%clk 00:17:57]} {[%emt 00:00:39]} Bxb5 {[%clk 00:17:43]} {[%emt 00:01:05]} 10.
Bb2 {[%clk 00:17:13]} {[%emt 00:00:49]} Ba4 {[%clk 00:17:08]} {[%emt 00:00:40]}
11. Qc1 {[%clk 00:17:01]} {[%emt 00:00:17]} Nd7 {[%clk 00:17:06]} {[%emt
00:00:07]} 12. d4 {[%clk 00:17:02]} {[%emt 00:00:03]} cxd3 {[%clk 00:17:03]}
{[%emt 00:00:09]} 13. Bxd3 {[%clk 00:17:04]} {[%emt 00:00:02]} Nc5 {[%clk
00:17:02]} {[%emt 00:00:07]} 14. Bc2 {[%clk 00:17:02]} {[%emt 00:00:07]} Ne7
{[%clk 00:11:51]} {[%emt 00:05:15]} 15. O-O {[%clk 00:16:42]} {[%emt 00:00:25]}
Nc6 {[%clk 00:11:52]} {[%emt 00:00:04]} 16. Rd1 {[%clk 00:12:34]} {[%emt
00:04:13]} Nb3 {[%emt 00:00:57]} 17. Bxb3 {[%clk 00:11:58]} {[%emt 00:00:39]}
Bxb3 {[%clk 00:11:05]} {[%emt 00:00:02]} 18. Re1 {[%clk 00:11:20]} {[%emt
00:00:43]} Na5 {[%clk 00:09:55]} {[%emt 00:01:16]} 19. Qf4 {[%clk 00:09:23]}
{[%emt 00:02:01]} Be7 {[%clk 00:08:42]} {[%emt 00:01:18]} 20. Qg4 {[%clk
00:07:32]} {[%emt 00:01:57]} O-O {[%clk 00:07:56]} {[%emt 00:00:51]} 21. Nd2
{[%clk 00:07:33]} {[%emt 00:00:03]} Qd7 {[%clk 00:06:06]} {[%emt 00:01:55]} 22.
Re3 {[%clk 00:05:41]} {[%emt 00:01:57]} Rfc8 {[%clk 00:05:38]} {[%emt
00:00:32]} 23. Rg3 {[%clk 00:04:17]} {[%emt 00:01:30]} Bf8 {[%clk 00:05:42]}
{[%emt 00:00:02]} 24. h4 {[%clk 00:04:21]} {[%emt 00:00:01]} Nc4 {[%clk
00:05:10]} {[%emt 00:00:37]} 25. Ndxc4 {[%clk 00:03:08]} {[%emt 00:01:17]} Bxc4
{[%clk 00:05:10]} {[%emt 00:00:05]} 26. h5 {[%clk 00:02:30]} {[%emt 00:00:43]}
h6 {[%clk 00:05:09]} {[%emt 00:00:06]} 27. Bc1 {[%clk 00:02:29]} {[%emt
00:00:06]} Kh7 {[%clk 00:04:25]} {[%emt 00:00:50]} 28. Rf3 {[%clk 00:00:12]}
{[%emt 00:02:22]} Rc7 {[%clk 00:03:58]} {[%emt 00:00:32]} 29. Kh2 {[%clk
00:00:07]} {[%emt 00:00:10]} Rca7 {[%clk 00:03:13]} {[%emt 00:00:49]} 30. Rg3
{[%clk 00:00:07]} {[%emt 00:00:05]} Qe7 {[%clk 00:02:54]} {[%emt 00:00:24]} 31.
Rb1 {[%clk 00:00:08]} {[%emt 00:00:05]} Rxa3 {[%clk 00:01:35]} {[%emt
00:01:24]} 32. Bxa3 {[%clk 00:00:12]} {[%emt 00:00:01]} Rxa3 {[%clk 00:01:38]}
{[%emt 00:00:02]} 33. Rxb6 {[%clk 00:00:16]} {[%emt 00:00:01]} Qg5 {[%clk
00:01:34]} {[%emt 00:00:08]} 34. Qf3 {[%clk 00:00:11]} {[%emt 00:00:10]} Qf5
{[%clk 00:01:35]} {[%emt 00:00:04]} 35. Qd1 {[%clk 00:00:08]} {[%emt 00:00:09]}
Ra2 {[%clk 00:01:25]} {[%emt 00:00:14]} 36. f3 {[%clk 00:00:06]} {[%emt
00:00:08]} Qxh5+ {[%clk 00:01:23]} {[%emt 00:00:07]} 37. Rh3 {[%clk 00:00:10]}
{[%emt 00:00:01]} Qxe5+ {[%clk 00:01:26]} {[%emt 00:00:02]} 38. Rg3 {[%clk
00:00:09]} {[%emt 00:00:05]} Bd6 {[%clk 00:01:21]} {[%emt 00:00:10]} 39. Qe1
{[%clk 00:00:13]} {[%emt 00:00:01]} Qxe1 {[%clk 00:01:20]} {[%emt 00:00:06]}
0-1



[ePGN "0.1;DGT LiveChess/2.2.6"]